Workbook

Sheet Start Here
B7: Welcome to the BT Pricing Tool! | H7: Click here to print all worksheets:
B9: The RR Pricing Tool provides you with a structured, step-by-step process to establish RR
B10: and account rates, evaluate the data, and create final rate recommendations.
E19: Note: On all worksheets, input fields are shaded light yellow!
B21: Now let's get started:
B23: First, enter the name of your market/cluster and property as well as the year for which you are pricing below:
B25: Market/Cluster: | E25: Market XX
B26: Hotel: | E26: XYZ Resort
B27: Pricing Season: | E27: 2009
B29: Then review the steps below and follow the instructions on each of the eight worksheets.
B31: RR Pricing Tool Steps:
B33: (1) | C33: Set Seasonality
B35: (2) | C35: Establish "RR"for each season
B37: (3) | C37: Prepare a Segment Prognosis for your property
B39: (4) | C39: Evaluate your market and hotel influencers
B41: (5) | C41: Adjust the "RR" up/down
B43: (6) | C43: Establish a "RR" for each account
B45: (7) | C45: Provide account data and create an account ranking
B47: (8) | C47: Adjust the "RR" account rates up/down
J50: Contact:

Sheet Step 1
A1: Setting Rate Based On Rate Weight
A2: ='Start Here'!E27:E27&" Pricing Season" -> 2009 Pricing Season
A3: =IF(ISBLANK('Start Here'!E25),"","Market/Cluster: "&'Start Here'!E25) -> Market/Cluster: Market XX
A4: =IF(ISBLANK('Start Here'!E26),"","Hotel: "&'Start Here'!E26) -> Hotel: XYZ Resort
A7: Step 1: Set Seasonality
A9: Enter Occupancy, year over year change in Occupancy, ADR, and year over year change in ADR by Period.
A11: Use current year data for the first 6 periods and last year data for the remaining periods.
A17: Period | B17: Occ/ES Occ | C17: Occ/Occ Chg | D17: ADR | E17: ADR Chg
A18: 1 | B18: 72% | C18: 3% | D18: $145 | E18: 3%
A19: 2 | B19: 75% | C19: 1% | D19: $150 | E19: 1%
A20: 3 | B20: 76% | C20: 2% | D20: $150 | E20: 2%
A21: 4 | B21: 81% | C21: 0% | D21: $170 | E21: 0%
A22: 5 | B22: 85% | C22: 1% | D22: $175 | E22: 1%
A23: 6 | B23: 85% | C23: 2% | D23: $170 | E23: 2%
A24: 7 | B24: 80% | C24: 2% | D24: $165 | E24: 2%
A25: 8 | B25: 79% | C25: 1% | D25: $175 | E25: 1%
A26: 9 | B26: 78% | C26: 0% | D26: $180 | E26: 0%
A27: 10 | B27: 88% | C27: 0% | D27: $180 | E27: 0%
A28: 11 | B28: 85% | C28: -3% | D28: $180 | E28: -3%
A29: 12 | B29: 80% | C29: -2% | D29: $170 | E29: -2%
A30: 13 | B30: 79% | C30: -1% | D30: $170 | E30: -1%
A33: b. Evaluate the Occupancy, ADR
A34: to set up to four seasons). Enter the dates in the cells below (if you have fewer than 4 seasons, leave the cells next to the seasons you do not have blank).
D36: Number of | E36: % of
A37: Seasons | D37: Days in | E37: Days in
A38: Season | B38: Start Date | C38: End Date | D38: Season | E38: Year
A39: 1 | B39: 2006-01-01 | C39: 2006-03-31 | D39: =IF(ISBLANK(B39),"",C39-B39+1) -> 90 | E39: =IF(ISERROR(D39/365),"",D39/365) -> 25%
A40: 2 | B40: 2006-04-01 | C40: 2006-06-30 | D40: =IF(ISBLANK(B40),"",C40-B40+1) -> 91 | E40: =IF(ISERROR(D40/365),"",D40/365) -> 25%
A41: 3 | B41: 2006-07-01 | C41: 2006-09-15 | D41: =IF(ISBLANK(B41),"",C41-B41+1) -> 77 | E41: =IF(ISERROR(D41/365),"",D41/365) -> 21%
A42: 4 | B42: 2006-09-16 | C42: 2006-12-31 | D42: =IF(ISBLANK(B42),"",C42-B42+1) -> 107 | E42: =IF(ISERROR(D42/365),"",D42/365) -> 29%

Sheet Step 2
A1: BT PRICING PROCESS STEPS
A2: ='Start Here'!E27:E27&" Pricing Season" -> 2009 Pricing Season
A3: =IF(ISBLANK('Start Here'!E25),"","Market/Cluster: "&'Start Here'!E25) -> Market/Cluster: Market XX
A4: =IF(ISBLANK('Start Here'!E26),"","Hotel: "&'Start Here'!E26) -> Hotel: XYZ Resort
A7: Step 2: Establish Benchmark Rates For Each Season
A9: a. Enter Weekday RevPAR growth forecast for your property
A11: Hotel WD RevPAR Growth Forecast (%) | D11: 1.4%
A14: b. Enter your current year seasonal weekday benchmark rates for each of your seasons in the box below.
A16: (Extended Stay properties should use the second table below and enter their current year benchmark rates for each LOS tier and season.)
A18: Your "First Mark" weekday benchmark rates will appear in the blue-shaded box below:
A20: Non-Extended Stay Properties
D21: Current Year | E21: ='Start Here'!$E$27:$E$27&" First Mark" -> 2009 First Mark
B22: Seasons | D22: Weekday | E22: Weekday
A23: Season | B23: Start Date | C23: End Date | D23: Benchmark Rate | E23: Benchmark Rate
A24: 1 | B24: =IF(ISBLANK('Step 1'!B39),"",'Step 1'!B39) -> 2006-01-01 | C24: =IF(ISBLANK('Step 1'!C39),"",'Step 1'!C39) -> 2006-03-31 | D24: $209 | E24: =IF(ISBLANK(D24),"",D24*(1+$D$11)) -> $212
A25: 2 | B25: =IF(ISBLANK('Step 1'!B40),"",'Step 1'!B40) -> 2006-04-01 | C25: =IF(ISBLANK('Step 1'!C40),"",'Step 1'!C40) -> 2006-06-30 | D25: $259 | E25: =IF(ISBLANK(D25),"",D25*(1+$D$11)) -> $263
A26: 3 | B26: =IF(ISBLANK('Step 1'!B41),"",'Step 1'!B41) -> 2006-07-01 | C26: =IF(ISBLANK('Step 1'!C41),"",'Step 1'!C41) -> 2006-09-15 | D26: $279 | E26: =IF(ISBLANK(D26),"",D26*(1+$D$11)) -> $283
A27: 4 | B27: =IF(ISBLANK('Step 1'!B42),"",'Step 1'!B42) -> 2006-09-16 | C27: =IF(ISBLANK('Step 1'!C42),"",'Step 1'!C42) -> 2006-12-31 | D27: $239 | E27: =IF(ISBLANK(D27),"",D27*(1+$D$11)) -> $242
A28: Weighted Average | D28: =IF(SUM(D24:D27)=0,"",(D24*'Step 1'!$E$39)+('Step 2'!D25*'Step 1'!$E$40)+('Step 2'!D26*'Step 1'!$E$41)+('Step 2'!D27*'Step 1'!$E$42)) -> $245 | E28: =IF(SUM(E24:E27)=0,"",(E24*'Step 1'!$E$39)+('Step 2'!E25*'Step 1'!$E$40)+('Step 2'!E26*'Step 1'!$E$41)+('Step 2'!E27*'Step 1'!$E$42)) -> $248
G32: Simply Weighted Average Is (Colecting The Year after Year Rom Night and Divied It on the Ttl Of Weight ( each year = 1 the next year =2 the year next =3 and so on
B33: Year | C33: RM NTS | D33: Weight | E33: TTL | G33: here u wil be able to anticepate the Room Night Ua are going to achieve in the same time to anticepating the Rate ---this Table just to clearfy HOW TO MAKE WIEGHT AVERAGE)
B34: 1990 | C34: 6230 | D34: 1 | E34: =C34 -> 6230
B35: 1991 | C35: 6330 | D35: 2 | E35: =C35 -> 6330
B36: 1992 | C36: 5600 | D36: 3 | E36: 5600
B37: 1993 | C37: 8000 | D37: 4 | E37: 8000
B38: 1994 | C38: 7600 | D38: 5 | E38: 7600
B39: 1995 | C39: 7900 | D39: 6 | E39: 7900
B40: 1996 | C40: 7000 | D40: 7 | E40: 7000
B41: 1997 | C41: 6000 | D41: 8 | E41: 6000
B42: 1998 | C42: 8000 | D42: 9 | E42: 8000
B43: 1999 | C43: 9000 | D43: 10 | E43: 9000
B44: 2000 | C44: 6800 | D44: 11 | E44: 6800
B45: 2001 | C45: 7600 | D45: 12 | E45: 7600
B46: 2002 | C46: 6000 | D46: 13 | E46: 6000
B47: 2003 | C47: 4000 | D47: 14 | E47: 4000
B48: 2004 | C48: 5600 | D48: 15 | E48: 5600
B49: 2005 | C49: 4355 | D49: 16 | E49: 4355
B50: 2006 | C50: 6700 | D50: 17 | E50: 6700
B51: 2007 | C51: 7000 | D51: 18 | E51: 7000
B52: 2008 | C52: 9000 | D52: 19 | E52: 9000
B53: 2009 | C53: 0 | D53: 0 | E53: 0
D54: =SUM(D34:D53) -> 190 | E54: =SUM(E34:E53) -> 128715

Sheet Step 3 (hidden)
A1: BT PRICING PROCESS STEPS
A2: ='Start Here'!E27:E27&" Pricing Season" -> 2009 Pricing Season
A3: =IF(ISBLANK('Start Here'!E25),"","Market/Cluster: "&'Start Here'!E25) -> Market/Cluster: Market XX
A4: =IF(ISBLANK('Start Here'!E26),"","Hotel: "&'Start Here'!E26) -> Hotel: XYZ Resort
A7: Step 3: Prepare Segment Prognosis for Your Property
A9: a. Using the data you gathered for your Market and Hotel Templates, evaluate your demand, competition and resource allocation for each major segment using the scale below.
A10: Enter your evaluation for each category (e.g., demand, competition, and resource allocation) and segment in the table below.
A11: (When you enter the indicators, use an apostrophe before the indicator, i.e., type in ' + , ' = , ' - , etc.)
A13: b. Then, record your initial expectation of how the volume and price will change next year (in the two Prognosis columns) using the same scale.
A15: c. Print your Segment Prognosis and bring a copy to the pricing meeting.
A18: Hotel: | B18: XYZ Resort | E18: Market/Cluster: | F18: XYZ Resort £2
A20: Segment Prognosis
E21: Resource | F21: Prognosis | I21: Scale (compared to
A22: Segment | C22: Demand | D22: Competition | E22: Allocation | F22: Volume | G22: Price | I22: current year)
A23: BT | C23: + | D23: = | E23: + | F23: + | G23: + | I23: Much More | J23: ++
I24: More | J24: +
A25: Leisure | C25: = | D25: = | E25: = | F25: = | G25: = | I25: Same | J25: =
I26: Less | J26: -
A27: Extended Stay | C27: NA | D27: NA | E27: NA | F27: NA | G27: NA | I27: Much Less | J27: --
A29: Group | C29: - | D29: + | E29: = | F29: - | G29: -
A31: Contract | C31: - | D31: = | E31: -- | F31: - | G31: =
A33: Catering | C33: = | D33: + | E33: = | F33: - | G33: =
A36: Note: A "+" or a "-" can be applied to the segments and categories above for many different reasons; a "+" does not necessarily always mean there are more customers or
A37: more competitors. Please refer to the examples below for things to consider when applying your ratings:
A39: Category | C39: Examples
A40: Demand | C40: "+" may mean more companies opening in or relocating to your market, or more travelers coming into your market.
A41: Competition | C41: "+" may mean new hotels (in your tier) opening in your market, or more intensified efforts by your competition to attract business.
A42: Resource Allocation | C42: "+" may mean more Marriott associates dedicated towards the segment, or higher accountability by the same number of associates against the segment.

Sheet Step 4 (hidden)
A1: BT PRICING PROCESS STEPS
A2: ='Start Here'!E27:E27&" Pricing Season" -> 2009 Pricing Season
A3: =IF(ISBLANK('Start Here'!E25),"","Market/Cluster: "&'Start Here'!E25) -> Market/Cluster: Market XX
A4: =IF(ISBLANK('Start Here'!E26),"","Hotel: "&'Start Here'!E26) -> Hotel: XYZ Resort
A6: Step 4: Evaluate Market & Hotel Influencers
A8: a. This step requires you to use your Market and Hotel Templates to help determine whether you need to adjust your "First Mark" benchmark rate up / down. Using
A9: the scale below, rate each of the influencers for next year. Adjust the weightings if necessary to reflect the relative importance of each influencer (the default
A10: weighting for each item is 6%). Note: The item weighting (in cell E47) has to total 100%!
A12: The total overall impact on your property's outlook will appear in the blue-shaded box at the bottom of the table.
A14: Scale | E14: Overall Impact Score: | G14: +10 to +5 | H14: Strong Outlook
A15: (compare next year to current year) | G15: +4 to 0 | H15: Average Outlook
A16: Better | C16: 1 | G16: -1 to -4 | H16: Soft Outlook
A17: Same/Unsure/Not Applicable | C17: 0 | G17: -5 to -10 | H17: Bleak Outlook
A18: Worse | C18: -1
A20: Prognosis
D21: Item | E21: Item | F21: Overall | G21: What to Consider & Where to Look
D22: Rating | E22: Weight | F22: Impact | G22: (Refer to Market Template and Hotel Template in the Pricing Meeting Templates file)
A23: Market Influencers
A24: Market Level Economic Indicators | D24: 1 | E24: 4% | F24: =D24*E24*10 -> 0 | G24: Consider market forecasts for GMP growth, employment growth, and personal income growth.
A25: Citywide Bookings | D25: 1 | E25: 6% | F25: 1 | G25: Refer to % change in next year's forecasted citywide bookings.
A26: Group Booking Pace | D26: -1 | E26: 8% | F26: -1 | G26: Refer to % change in next year's group booking pace.
A27: Supply Outlook | D27: 0 | E27: 4% | F27: =D27*E27*10 -> 0 | G27: Consider the supply outlook / scheduled completions for next year.
A28: Top Source Markets/Other Key Factors | D28: 1 | E28: 5% | F28: =D28*E28*10 -> 1 | G28: Refer to next year's outlook. Includes special events, sporting events, deplanements, new businesses, etc.
A29: Weekday Cluster Demand and Mix Trends | D29: -1 | E29: 4% | F29: -0 | G29: Consider changes in WD corporate & above mix, demand and price sensitivity you anticipate for next year.
A30: Weekday Cluster Demand Outlook | D30: -1 | E30: 10% | F30: =D30*E30*10 -> -1 | G30: Refer to the demand outlook for next year.
A31: Market RevPAR Trends | D31: 0 | E31: 6% | F31: 0 | G31: Base this on your assessment for Cluster & Comp Set RevPAR next year.
A32: Market Occupancy Trends | D32: 0 | E32: 3% | F32: 0 | G32: Refer to your prognosis for Cluster & Comp Set Occupancy next year.
A33: Other | D33: 0 | E33: 0% | F33: 0 | G33: Optional market/cluster specific category - add item if needed.
C34: Subtotal | E34: =SUM(E24:E33) -> 50% | F34: =SUM(F24:F33) -> -1
A35: Hotel Influencers
A36: BT Segment Prognosis: Price | D36: 1 | E36: 9% | F36: =D36*E36*10 -> 1 | G36: Enter a rating based on your prognosis for BT segment price from Step 3.
A37: Group Booking Pace | D37: -1 | E37: 8% | F37: =D37*E37*10 -> -1 | G37: Refer to % change in your property's group booking pace (and expected) next year.
A38: WD Corporate & Above Mix/ES Occ Performance | D38: -1 | E38: 7% | F38: =D38*E38*10 -> -1 | G38: Looking at YTD trends, evaluate whether Corporate & Above mix (EsOCC performance for Ext. Stay) will increase next year.
A39: Weekday Occupancy | D39: 0 | E39: 7% | F39: =D39*E39*10 -> 0 | G39: Refer to YTD weekday occupancy trends and formulate an outlook for next year.
A40: Weekday Transient Rate Efficiency | D40: -1 | E40: 7% | F40: -1 | G40: Consider YTD trends and whether transient rate efficiency will improve next year.
A41: Source of RevPAR Growth Opportunity | D41: 1 | E41: 8% | F41: 1 | G41: If primary source for RevPAR growth is occ growth or upward mix shift, rating should be -1. If the primary source is downward mix shift or rate growth, rating should be +1.
A42: Other | D42: 0 | E42: 0% | F42: 0 | G42: Optional property specific category - add item if needed.
C43: Subtotal | E43: =SUM(E36:E42) -> 46% | F43: =SUM(F36:F42) -> -1
A44: Customer Influencers
A45: Customer Value Perception | D45: 0 | E45: 4% | F45: =D45*E45*10 -> 0 | G45: Use your property's / brand's customer surveys on value.
A46: Other | D46: 0 | E46: 0% | F46: =D46*E46*10 -> 0 | G46: Optional property specific category - add item if needed.
C47: Subtotal | E47: =SUM(E45:E46) -> 4% | F47: =SUM(F45:F46) -> 0
C48: Total Overall Impact | E48: =E34+E43+E47 -> 100% | F48: =F34+F43+F47 -> -1 | G48: =IF(F48>4,"STRONG OUTLOOK",IF(F48>-1,"AVERAGE OUTLOOK",IF(F48>-5,"SOFT OUTLOOK","BLEAK OUTLOOK"))) -> SOFT OUTLOOK
A50: b. Evaluate the overall impact score derived in (a) using the grid below:
A53: Overall Impact Score | C53: What the Score Means & Implications for Strategy | H53: Potential Pricing Action Steps
A54: +10 to +5 | B54: STRONG | C54: The market/hotel is performing well in a rather difficult economy. Review external factors to ensure they will remain strong, and focus your attention on mix and rate opportunity. | H54: After your demand trends have been verified, adjust your weekday benchmark rate accordingly. Pay close attention to your transient and group rate efficiencies.
A58: +4 to 0 | B58: AVERAGE | C58: The market/hotel is reacting to the existing conditions in the economy. Creativity in pricing, sales and mix management will define the most successful hotels in the set. | H58: Increasing RevPAR when you have opportunity is key to your financial success. Rather than adjusting rates by the same % across the board, one season may warrant no increase or a drop in the benchmark rate, while another season may warrant a % increase.
A62: 0 to -4 | B62: SOFT | C62: The market/hotel is performing behind the average industry expectation in the current economy. A strong emphasis must be place on proactive sales, rate re-positioning, and opening discounts. Seek AAA, Advance Purchase, and Priceline opportunities. | H62: Approach pricing carefully. Review the % increase in your pricing by season. Consider which accounts should be raised due to lack of production. Offer potential key accounts value (through rate or other) if they can move patterns or guarantee more business, based on a quarterly review.
A68: -5 to -10 | B68: BLEAK | C68: The market/hotel is underperforming in the current economy. Immediate action must be taken to re-position rates in the market. Once rates have been re-postioned, a direct mail campaign to leisure, BTS, and group will be needed to re-spark interest in the property. Consider value-add offers (breakfast, lounge access) to key accounts and targeted segments. | H68: Approach pricing from a "shock the market" perspective. A significant reduction in your benchmark rate may be necessary. Review your key accounts in the previous two years. Are there accounts you may have turned away last year that you can get back for next year?

Sheet Step 5
A1: BT PRICING PROCESS STEPS
A2: ='Start Here'!E27:E27&" Pricing Season" -> 2009 Pricing Season
A3: =IF(ISBLANK('Start Here'!E25),"","Market/Cluster: "&'Start Here'!E25) -> Market/Cluster: Market XX
A4: =IF(ISBLANK('Start Here'!E26),"","Hotel: "&'Start Here'!E26) -> Hotel: XYZ Resort
A7: Step 5: Adjust the "First Mark" Benchmark Rates Up / Down
A9: a. Using the Overall Impact Score, the individual ratings, and the grid from Step 4, as well as your Segment Prognosis from Step 3 as a guide, adjust your weekday
A10: RevPAR growth forecast for your property. Enter your adjusted forecast on the Hotel Template.
A12: b. Again using your ratings in Step 4, in addition to your revised RevPAR growth forecast, determine the weekday benchmark rates you will submit for each of your seasons
A13: on MarRFP and enter them in the yellow-shaded box below. (If you are an extended stay property, use the second table below and enter your benchmark rates for each
A14: tier.) The % changes are calculated automatically.
A16: Setting Rate Is Just Art More Than Science
A20: Non-Extended Stay Properties
D21: Current Year | E21: ='Start Here'!$E$27:$E$27&" First Mark" -> 2009 First Mark | F21: ='Start Here'!$E$27:$E$27&" MarRFP" -> 2009 MarRFP
B22: Seasons | D22: Weekday | E22: Weekday | F22: Weekday | G22: % Change
A23: Season | B23: Start Date | C23: End Date | D23: Benchmark Rate | E23: Benchmark Rate | F23: Benchmark Rate
A24: 1 | B24: ='Step 1'!B39 -> 2006-01-01 | C24: ='Step 1'!C39 -> 2006-03-31 | D24: =IF(ISBLANK('Step 2'!D24),"",'Step 2'!D24) -> $209 | E24: ='Step 2'!E24 -> $212 | F24: $214 | G24: =IF(ISERROR((F24-D24)/D24),"",(F24-D24)/D24) -> 2.4%
A25: 2 | B25: ='Step 1'!B40 -> 2006-04-01 | C25: ='Step 1'!C40 -> 2006-06-30 | D25: =IF(ISBLANK('Step 2'!D25),"",'Step 2'!D25) -> $259 | E25: ='Step 2'!E25 -> $263 | F25: $269 | G25: =IF(ISERROR((F25-D25)/D25),"",(F25-D25)/D25) -> 3.9%
A26: 3 | B26: ='Step 1'!B41 -> 2006-07-01 | C26: ='Step 1'!C41 -> 2006-09-15 | D26: =IF(ISBLANK('Step 2'!D26),"",'Step 2'!D26) -> $279 | E26: ='Step 2'!E26 -> $283 | F26: $284 | G26: =IF(ISERROR((F26-D26)/D26),"",(F26-D26)/D26) -> 1.8%
A27: 4 | B27: ='Step 1'!B42 -> 2006-09-16 | C27: ='Step 1'!C42 -> 2006-12-31 | D27: =IF(ISBLANK('Step 2'!D27),"",'Step 2'!D27) -> $239 | E27: ='Step 2'!E27 -> $242 | F27: $249 | G27: =IF(ISERROR((F27-D27)/D27),"",(F27-D27)/D27) -> 4.2%
A28: Weighted Average | D28: =IF(SUM(D24:D27)=0,"",(D24*'Step 1'!$E$39)+('Step 5'!D25*'Step 1'!$E$40)+('Step 5'!D26*'Step 1'!$E$41)+('Step 5'!D27*'Step 1'!$E$42)) -> $245 | E28: =IF(SUM(E24:E27)=0,"",(E24*'Step 1'!$E$39)+('Step 5'!E25*'Step 1'!$E$40)+('Step 5'!E26*'Step 1'!$E$41)+('Step 5'!E27*'Step 1'!$E$42)) -> $248 | F28: =IF(SUM(F24:F27)=0,"",(F24*'Step 1'!$E$39)+('Step 5'!F25*'Step 1'!$E$40)+('Step 5'!F26*'Step 1'!$E$41)+('Step 5'!F27*'Step 1'!$E$42)) -> $253 | G28: =IF(ISERROR((F28-D28)/D28),"",(F28-D28)/D28) -> 3.1%

Sheet Step 6
A1: BT PRICING PROCESS STEPS
A2: ='Start Here'!E27:E27&" Pricing Season" -> 2009 Pricing Season
A3: =IF(ISBLANK('Start Here'!E25),"","Market/Cluster: "&'Start Here'!E25) -> Market/Cluster: Market XX
A4: =IF(ISBLANK('Start Here'!E26),"","Hotel: "&'Start Here'!E26) -> Hotel: XYZ Resort
A6: Step 6: Establish a "First Mark" Rate for Each Account
A8: a. Enter the name of each Special Corporate and Account # in the left-hand column. Then enter the Current Year account rates by season in the yellow-shaded
A9: area The average for the year and the "First Mark" Special Corporate rates will be calculated for you below.
A12: For Non-Extended Stay Properties:
C13: Current Year Account Rates | H13: ='Start Here'!$E$27:$E$27&" First Mark Account Rates" -> 2009 First Mark Account Rates
A14: Account | C14: Season 1 | D14: Season 2 | E14: Season 3 | F14: Season 4 | G14: Average | H14: Season 1 | I14: Season 2 | J14: Season 3 | K14: Season 4 | L14: Average
A15: Account #1 | C15: $179 | D15: $229 | E15: $249 | F15: $209 | G15: =IF(ISBLANK(A15),"",((C15*'Step 1'!E$39)+(D15*'Step 1'!E$40)+(E15*'Step 1'!E$41)+(F15*'Step 1'!E$42))) -> $215 | H15: =IF(ISBLANK(A15),"",C15*(1+'Step 5'!$G$24)) -> $183 | I15: =IF(ISBLANK(A15),"",D15*(1+'Step 5'!$G$25)) -> $238 | J15: =IF(ISBLANK(A15),"",E15*(1+'Step 5'!$G$26)) -> $253 | K15: =IF(ISBLANK(A15),"",F15*(1+'Step 5'!$G$27)) -> $218 | L15: =IF(ISBLANK(A15),"",((H15*'Step 1'!E$39)+(I15*'Step 1'!E$40)+(J15*'Step 1'!E$41)+(K15*'Step 1'!E$42))) -> $222
A16: Account #2 | C16: $169 | D16: $219 | E16: $239 | F16: $199 | G16: =IF(ISBLANK(A16),"",((C16*'Step 1'!E$39)+(D16*'Step 1'!E$40)+(E16*'Step 1'!E$41)+(F16*'Step 1'!E$42))) -> $205 | H16: =IF(ISBLANK(A16),"",C16*(1+'Step 5'!$G$24)) -> $173 | I16: =IF(ISBLANK(A16),"",D16*(1+'Step 5'!$G$25)) -> $227 | J16: =IF(ISBLANK(A16),"",E16*(1+'Step 5'!$G$26)) -> $243 | K16: =IF(ISBLANK(A16),"",F16*(1+'Step 5'!$G$27)) -> $207 | L16: =IF(ISBLANK(A16),"",((H16*'Step 1'!E$39)+(I16*'Step 1'!E$40)+(J16*'Step 1'!E$41)+(K16*'Step 1'!E$42))) -> $211
G17: =IF(ISBLANK(A17),"",((C17*'Step 1'!E$39)+(D17*'Step 1'!E$40)+(E17*'Step 1'!E$41)+(F17*'Step 1'!E$42))) ->  | H17: =IF(ISBLANK(A17),"",C17*(1+'Step 5'!$G$24)) ->  | I17: =IF(ISBLANK(A17),"",D17*(1+'Step 5'!$G$25)) ->  | J17: =IF(ISBLANK(A17),"",E17*(1+'Step 5'!$G$26)) ->  | K17: =IF(ISBLANK(A17),"",F17*(1+'Step 5'!$G$27)) ->  | L17: =IF(ISBLANK(A17),"",((H17*'Step 1'!E$39)+(I17*'Step 1'!E$40)+(J17*'Step 1'!E$41)+(K17*'Step 1'!E$42))) -> 
G18: =IF(ISBLANK(A18),"",((C18*'Step 1'!E$39)+(D18*'Step 1'!E$40)+(E18*'Step 1'!E$41)+(F18*'Step 1'!E$42))) ->  | H18: =IF(ISBLANK(A18),"",C18*(1+'Step 5'!$G$24)) ->  | I18: =IF(ISBLANK(A18),"",D18*(1+'Step 5'!$G$25)) ->  | J18: =IF(ISBLANK(A18),"",E18*(1+'Step 5'!$G$26)) ->  | K18: =IF(ISBLANK(A18),"",F18*(1+'Step 5'!$G$27)) ->  | L18: =IF(ISBLANK(A18),"",((H18*'Step 1'!E$39)+(I18*'Step 1'!E$40)+(J18*'Step 1'!E$41)+(K18*'Step 1'!E$42))) -> 
G19: =IF(ISBLANK(A19),"",((C19*'Step 1'!E$39)+(D19*'Step 1'!E$40)+(E19*'Step 1'!E$41)+(F19*'Step 1'!E$42))) ->  | H19: =IF(ISBLANK(A19),"",C19*(1+'Step 5'!$G$24)) ->  | I19: =IF(ISBLANK(A19),"",D19*(1+'Step 5'!$G$25)) ->  | J19: =IF(ISBLANK(A19),"",E19*(1+'Step 5'!$G$26)) ->  | K19: =IF(ISBLANK(A19),"",F19*(1+'Step 5'!$G$27)) ->  | L19: =IF(ISBLANK(A19),"",((H19*'Step 1'!E$39)+(I19*'Step 1'!E$40)+(J19*'Step 1'!E$41)+(K19*'Step 1'!E$42))) -> 
G20: =IF(ISBLANK(A20),"",((C20*'Step 1'!E$39)+(D20*'Step 1'!E$40)+(E20*'Step 1'!E$41)+(F20*'Step 1'!E$42))) ->  | H20: =IF(ISBLANK(A20),"",C20*(1+'Step 5'!$G$24)) ->  | I20: =IF(ISBLANK(A20),"",D20*(1+'Step 5'!$G$25)) ->  | J20: =IF(ISBLANK(A20),"",E20*(1+'Step 5'!$G$26)) ->  | K20: =IF(ISBLANK(A20),"",F20*(1+'Step 5'!$G$27)) ->  | L20: =IF(ISBLANK(A20),"",((H20*'Step 1'!E$39)+(I20*'Step 1'!E$40)+(J20*'Step 1'!E$41)+(K20*'Step 1'!E$42))) -> 
G21: =IF(ISBLANK(A21),"",((C21*'Step 1'!E$39)+(D21*'Step 1'!E$40)+(E21*'Step 1'!E$41)+(F21*'Step 1'!E$42))) ->  | H21: =IF(ISBLANK(A21),"",C21*(1+'Step 5'!$G$24)) ->  | I21: =IF(ISBLANK(A21),"",D21*(1+'Step 5'!$G$25)) ->  | J21: =IF(ISBLANK(A21),"",E21*(1+'Step 5'!$G$26)) ->  | K21: =IF(ISBLANK(A21),"",F21*(1+'Step 5'!$G$27)) ->  | L21: =IF(ISBLANK(A21),"",((H21*'Step 1'!E$39)+(I21*'Step 1'!E$40)+(J21*'Step 1'!E$41)+(K21*'Step 1'!E$42))) -> 
G22: =IF(ISBLANK(A22),"",((C22*'Step 1'!E$39)+(D22*'Step 1'!E$40)+(E22*'Step 1'!E$41)+(F22*'Step 1'!E$42))) ->  | H22: =IF(ISBLANK(A22),"",C22*(1+'Step 5'!$G$24)) ->  | I22: =IF(ISBLANK(A22),"",D22*(1+'Step 5'!$G$25)) ->  | J22: =IF(ISBLANK(A22),"",E22*(1+'Step 5'!$G$26)) ->  | K22: =IF(ISBLANK(A22),"",F22*(1+'Step 5'!$G$27)) ->  | L22: =IF(ISBLANK(A22),"",((H22*'Step 1'!E$39)+(I22*'Step 1'!E$40)+(J22*'Step 1'!E$41)+(K22*'Step 1'!E$42))) -> 
G23: =IF(ISBLANK(A23),"",((C23*'Step 1'!E$39)+(D23*'Step 1'!E$40)+(E23*'Step 1'!E$41)+(F23*'Step 1'!E$42))) ->  | H23: =IF(ISBLANK(A23),"",C23*(1+'Step 5'!$G$24)) ->  | I23: =IF(ISBLANK(A23),"",D23*(1+'Step 5'!$G$25)) ->  | J23: =IF(ISBLANK(A23),"",E23*(1+'Step 5'!$G$26)) ->  | K23: =IF(ISBLANK(A23),"",F23*(1+'Step 5'!$G$27)) ->  | L23: =IF(ISBLANK(A23),"",((H23*'Step 1'!E$39)+(I23*'Step 1'!E$40)+(J23*'Step 1'!E$41)+(K23*'Step 1'!E$42))) -> 
G24: =IF(ISBLANK(A24),"",((C24*'Step 1'!E$39)+(D24*'Step 1'!E$40)+(E24*'Step 1'!E$41)+(F24*'Step 1'!E$42))) ->  | H24: =IF(ISBLANK(A24),"",C24*(1+'Step 5'!$G$24)) ->  | I24: =IF(ISBLANK(A24),"",D24*(1+'Step 5'!$G$25)) ->  | J24: =IF(ISBLANK(A24),"",E24*(1+'Step 5'!$G$26)) ->  | K24: =IF(ISBLANK(A24),"",F24*(1+'Step 5'!$G$27)) ->  | L24: =IF(ISBLANK(A24),"",((H24*'Step 1'!E$39)+(I24*'Step 1'!E$40)+(J24*'Step 1'!E$41)+(K24*'Step 1'!E$42))) -> 
G25: =IF(ISBLANK(A25),"",((C25*'Step 1'!E$39)+(D25*'Step 1'!E$40)+(E25*'Step 1'!E$41)+(F25*'Step 1'!E$42))) ->  | H25: =IF(ISBLANK(A25),"",C25*(1+'Step 5'!$G$24)) ->  | I25: =IF(ISBLANK(A25),"",D25*(1+'Step 5'!$G$25)) ->  | J25: =IF(ISBLANK(A25),"",E25*(1+'Step 5'!$G$26)) ->  | K25: =IF(ISBLANK(A25),"",F25*(1+'Step 5'!$G$27)) ->  | L25: =IF(ISBLANK(A25),"",((H25*'Step 1'!E$39)+(I25*'Step 1'!E$40)+(J25*'Step 1'!E$41)+(K25*'Step 1'!E$42))) -> 
G26: =IF(ISBLANK(A26),"",((C26*'Step 1'!E$39)+(D26*'Step 1'!E$40)+(E26*'Step 1'!E$41)+(F26*'Step 1'!E$42))) ->  | H26: =IF(ISBLANK(A26),"",C26*(1+'Step 5'!$G$24)) ->  | I26: =IF(ISBLANK(A26),"",D26*(1+'Step 5'!$G$25)) ->  | J26: =IF(ISBLANK(A26),"",E26*(1+'Step 5'!$G$26)) ->  | K26: =IF(ISBLANK(A26),"",F26*(1+'Step 5'!$G$27)) ->  | L26: =IF(ISBLANK(A26),"",((H26*'Step 1'!E$39)+(I26*'Step 1'!E$40)+(J26*'Step 1'!E$41)+(K26*'Step 1'!E$42))) -> 
G27: =IF(ISBLANK(A27),"",((C27*'Step 1'!E$39)+(D27*'Step 1'!E$40)+(E27*'Step 1'!E$41)+(F27*'Step 1'!E$42))) ->  | H27: =IF(ISBLANK(A27),"",C27*(1+'Step 5'!$G$24)) ->  | I27: =IF(ISBLANK(A27),"",D27*(1+'Step 5'!$G$25)) ->  | J27: =IF(ISBLANK(A27),"",E27*(1+'Step 5'!$G$26)) ->  | K27: =IF(ISBLANK(A27),"",F27*(1+'Step 5'!$G$27)) ->  | L27: =IF(ISBLANK(A27),"",((H27*'Step 1'!E$39)+(I27*'Step 1'!E$40)+(J27*'Step 1'!E$41)+(K27*'Step 1'!E$42))) -> 
G28: =IF(ISBLANK(A28),"",((C28*'Step 1'!E$39)+(D28*'Step 1'!E$40)+(E28*'Step 1'!E$41)+(F28*'Step 1'!E$42))) ->  | H28: =IF(ISBLANK(A28),"",C28*(1+'Step 5'!$G$24)) ->  | I28: =IF(ISBLANK(A28),"",D28*(1+'Step 5'!$G$25)) ->  | J28: =IF(ISBLANK(A28),"",E28*(1+'Step 5'!$G$26)) ->  | K28: =IF(ISBLANK(A28),"",F28*(1+'Step 5'!$G$27)) ->  | L28: =IF(ISBLANK(A28),"",((H28*'Step 1'!E$39)+(I28*'Step 1'!E$40)+(J28*'Step 1'!E$41)+(K28*'Step 1'!E$42))) -> 
G29: =IF(ISBLANK(A29),"",((C29*'Step 1'!E$39)+(D29*'Step 1'!E$40)+(E29*'Step 1'!E$41)+(F29*'Step 1'!E$42))) ->  | H29: =IF(ISBLANK(A29),"",C29*(1+'Step 5'!$G$24)) ->  | I29: =IF(ISBLANK(A29),"",D29*(1+'Step 5'!$G$25)) ->  | J29: =IF(ISBLANK(A29),"",E29*(1+'Step 5'!$G$26)) ->  | K29: =IF(ISBLANK(A29),"",F29*(1+'Step 5'!$G$27)) ->  | L29: =IF(ISBLANK(A29),"",((H29*'Step 1'!E$39)+(I29*'Step 1'!E$40)+(J29*'Step 1'!E$41)+(K29*'Step 1'!E$42))) -> 
G30: =IF(ISBLANK(A30),"",((C30*'Step 1'!E$39)+(D30*'Step 1'!E$40)+(E30*'Step 1'!E$41)+(F30*'Step 1'!E$42))) ->  | H30: =IF(ISBLANK(A30),"",C30*(1+'Step 5'!$G$24)) ->  | I30: =IF(ISBLANK(A30),"",D30*(1+'Step 5'!$G$25)) ->  | J30: =IF(ISBLANK(A30),"",E30*(1+'Step 5'!$G$26)) ->  | K30: =IF(ISBLANK(A30),"",F30*(1+'Step 5'!$G$27)) ->  | L30: =IF(ISBLANK(A30),"",((H30*'Step 1'!E$39)+(I30*'Step 1'!E$40)+(J30*'Step 1'!E$41)+(K30*'Step 1'!E$42))) -> 
G31: =IF(ISBLANK(A31),"",((C31*'Step 1'!E$39)+(D31*'Step 1'!E$40)+(E31*'Step 1'!E$41)+(F31*'Step 1'!E$42))) ->  | H31: =IF(ISBLANK(A31),"",C31*(1+'Step 5'!$G$24)) ->  | I31: =IF(ISBLANK(A31),"",D31*(1+'Step 5'!$G$25)) ->  | J31: =IF(ISBLANK(A31),"",E31*(1+'Step 5'!$G$26)) ->  | K31: =IF(ISBLANK(A31),"",F31*(1+'Step 5'!$G$27)) ->  | L31: =IF(ISBLANK(A31),"",((H31*'Step 1'!E$39)+(I31*'Step 1'!E$40)+(J31*'Step 1'!E$41)+(K31*'Step 1'!E$42))) -> 
G32: =IF(ISBLANK(A32),"",((C32*'Step 1'!E$39)+(D32*'Step 1'!E$40)+(E32*'Step 1'!E$41)+(F32*'Step 1'!E$42))) ->  | H32: =IF(ISBLANK(A32),"",C32*(1+'Step 5'!$G$24)) ->  | I32: =IF(ISBLANK(A32),"",D32*(1+'Step 5'!$G$25)) ->  | J32: =IF(ISBLANK(A32),"",E32*(1+'Step 5'!$G$26)) ->  | K32: =IF(ISBLANK(A32),"",F32*(1+'Step 5'!$G$27)) ->  | L32: =IF(ISBLANK(A32),"",((H32*'Step 1'!E$39)+(I32*'Step 1'!E$40)+(J32*'Step 1'!E$41)+(K32*'Step 1'!E$42))) -> 
G33: =IF(ISBLANK(A33),"",((C33*'Step 1'!E$39)+(D33*'Step 1'!E$40)+(E33*'Step 1'!E$41)+(F33*'Step 1'!E$42))) ->  | H33: =IF(ISBLANK(A33),"",C33*(1+'Step 5'!$G$24)) ->  | I33: =IF(ISBLANK(A33),"",D33*(1+'Step 5'!$G$25)) ->  | J33: =IF(ISBLANK(A33),"",E33*(1+'Step 5'!$G$26)) ->  | K33: =IF(ISBLANK(A33),"",F33*(1+'Step 5'!$G$27)) ->  | L33: =IF(ISBLANK(A33),"",((H33*'Step 1'!E$39)+(I33*'Step 1'!E$40)+(J33*'Step 1'!E$41)+(K33*'Step 1'!E$42))) -> 
G34: =IF(ISBLANK(A34),"",((C34*'Step 1'!E$39)+(D34*'Step 1'!E$40)+(E34*'Step 1'!E$41)+(F34*'Step 1'!E$42))) ->  | H34: =IF(ISBLANK(A34),"",C34*(1+'Step 5'!$G$24)) ->  | I34: =IF(ISBLANK(A34),"",D34*(1+'Step 5'!$G$25)) ->  | J34: =IF(ISBLANK(A34),"",E34*(1+'Step 5'!$G$26)) ->  | K34: =IF(ISBLANK(A34),"",F34*(1+'Step 5'!$G$27)) ->  | L34: =IF(ISBLANK(A34),"",((H34*'Step 1'!E$39)+(I34*'Step 1'!E$40)+(J34*'Step 1'!E$41)+(K34*'Step 1'!E$42))) -> 

Sheet Step 7
A1: BT PRICING PROCESS STEPS
A2: ='Start Here'!E27:E27&" Pricing Season" -> 2009 Pricing Season
A3: =IF(ISBLANK('Start Here'!E25),"","Market/Cluster: "&'Start Here'!E25) -> Market/Cluster: Market XX
A4: =IF(ISBLANK('Start Here'!E26),"","Hotel: "&'Start Here'!E26) -> Hotel: XYZ Resort
A6: Step 7: Provide Account Data and Create Account Ranking
A8: a. Using the data on the BT Account Templates (or the Account Summary on the Pricing Sheet if already completed), enter (or cut and paste) data into
A9: the cells below. ADR and % discount off WD Benchmark rate are calculated automatically. Indicate through which period you are entering data in cell B12.
A10: If Tuesdays and Wednesdays are not the weekdays on which your demand is highest, use other appropriate peak weekday roomnights instead.
A12: Year to Date: | B12: PD 6
F14: % Discount | G14: % RN | I14: Group | J14: Catering | K14: Value
A15: Account | C15: Roomnights | D15: Revenue | E15: ADR | F15: Off Benchmark | G15: Tue/Wed | I15: Revenue | J15: Revenue | K15: Ratio (1)
A16: WD Benchmark Rate | C16: 29,550 | D16: 6,914,700 | E16: =IF(ISERROR(D16/C16),"",D16/C16) -> $234 | G16: 59%
A17: =IF(ISBLANK('Step 6'!A15),"",'Step 6'!A15) -> Account #1 | C17: 217 | D17: 44,268 | E17: =IF(ISBLANK('Step 6'!A15),"",D17/C17) -> $204 | F17: =IF(ISERROR((E$16-E17)/E$16),"",(E$16-E17)/E$16) -> 13% | G17: 58% | I17: 20,000 | J17: 15,000 | K17: 25%
A18: =IF(ISBLANK('Step 6'!A16),"",'Step 6'!A16) -> Account #2 | C18: 645 | D18: 125,130 | E18: =IF(ISBLANK('Step 6'!A16),"",D18/C18) -> $194 | F18: =IF(ISERROR((E$16-E18)/E$16),"",(E$16-E18)/E$16) -> 17% | G18: 45% | I18: 35,000 | J18: 2,659 | K18: 41%
A19: =IF(ISBLANK('Step 6'!A17),"",'Step 6'!A17) ->  | E19: =IF(ISBLANK('Step 6'!A17),"",D19/C19) ->  | F19: =IF(ISERROR((E$16-E19)/E$16),"",(E$16-E19)/E$16) -> 
A20: =IF(ISBLANK('Step 6'!A18),"",'Step 6'!A18) ->  | E20: =IF(ISBLANK('Step 6'!A18),"",D20/C20) ->  | F20: =IF(ISERROR((E$16-E20)/E$16),"",(E$16-E20)/E$16) -> 
A21: =IF(ISBLANK('Step 6'!A19),"",'Step 6'!A19) ->  | E21: =IF(ISBLANK('Step 6'!A19),"",D21/C21) -> 
A22: =IF(ISBLANK('Step 6'!A20),"",'Step 6'!A20) ->  | E22: =IF(ISBLANK('Step 6'!A20),"",D22/C22) -> 
A23: =IF(ISBLANK('Step 6'!A21),"",'Step 6'!A21) ->  | E23: =IF(ISBLANK('Step 6'!A21),"",D23/C23) -> 
A24: =IF(ISBLANK('Step 6'!A22),"",'Step 6'!A22) ->  | E24: =IF(ISBLANK('Step 6'!A22),"",D24/C24) -> 
A25: =IF(ISBLANK('Step 6'!A23),"",'Step 6'!A23) ->  | E25: =IF(ISBLANK('Step 6'!A23),"",D25/C25) -> 
A26: =IF(ISBLANK('Step 6'!A24),"",'Step 6'!A24) ->  | E26: =IF(ISBLANK('Step 6'!A24),"",D26/C26) -> 
A27: =IF(ISBLANK('Step 6'!A25),"",'Step 6'!A25) ->  | E27: =IF(ISBLANK('Step 6'!A25),"",D27/C27) -> 
A28: =IF(ISBLANK('Step 6'!A26),"",'Step 6'!A26) ->  | E28: =IF(ISBLANK('Step 6'!A26),"",D28/C28) -> 
A29: =IF(ISBLANK('Step 6'!A27),"",'Step 6'!A27) ->  | E29: =IF(ISBLANK('Step 6'!A27),"",D29/C29) -> 
A30: =IF(ISBLANK('Step 6'!A28),"",'Step 6'!A28) ->  | E30: =IF(ISBLANK('Step 6'!A28),"",D30/C30) -> 
A31: =IF(ISBLANK('Step 6'!A29),"",'Step 6'!A29) ->  | E31: =IF(ISBLANK('Step 6'!A29),"",D31/C31) -> 
A32: =IF(ISBLANK('Step 6'!A30),"",'Step 6'!A30) ->  | E32: =IF(ISBLANK('Step 6'!A30),"",D32/C32) -> 
A33: =IF(ISBLANK('Step 6'!A31),"",'Step 6'!A31) ->  | E33: =IF(ISBLANK('Step 6'!A31),"",D33/C33) -> 
A34: =IF(ISBLANK('Step 6'!A32),"",'Step 6'!A32) ->  | E34: =IF(ISBLANK('Step 6'!A32),"",D34/C34) -> 
A35: =IF(ISBLANK('Step 6'!A33),"",'Step 6'!A33) ->  | E35: =IF(ISBLANK('Step 6'!A33),"",D35/C35) -> 
A36: =IF(ISBLANK('Step 6'!A34),"",'Step 6'!A34) ->  | E36: =IF(ISBLANK('Step 6'!A34),"",D36/C36) -> 
A37: (1) Source: Account Contribution Tool
A39: b. Decide on how you want to weight each of the categories below by changing the corresponding weightings. The default weights are 1. If you want
A40: to weight a category more heavily than another, you should increase the weight to 2 or 3; if a category is not important, put in a weight of "0".
A41: The far right (green) column uses the data you entered in Step (7a) and the weightings you selected below to create an account ranking.
A42: The account ranked as number "1" should be your most valuable account.
C44: Weightings / Rankings
D45: % Discount | F45: % RN | G45: Group | H45: Catering | I45: Value
C46: Roomnights | D46: Off Benchmark | F46: Tue/Wed | G46: Revenue | H46: Revenue | I46: Ratio | J46: Weighted | K46: Account
A47: Account | C47: 2 | D47: 1 | F47: 1 | G47: 1 | H47: 1 | I47: 1 | J47: Average | K47: Ranking
A48: =IF(ISBLANK('Step 6'!A15),"",A17) -> Account #1 | C48: =IF(ISBLANK('Step 6'!$A15),"",RANK(C17,C$17:C$36,0)) -> 2 | D48: =IF(ISBLANK('Step 6'!$A15),"",RANK(F17,F$17:F$36,1)) -> 1 | F48: =IF(ISBLANK('Step 6'!$A15),"",RANK(G17,G$17:G$36,1)) -> 2 | G48: =IF(ISBLANK('Step 6'!$A15),"",RANK(I17,I$17:I$36,0)) -> 2 | H48: =IF(ISBLANK('Step 6'!$A15),"",RANK(J17,J$17:J$36,0)) -> 1 | I48: =IF(ISBLANK('Step 6'!$A15),"",RANK(K17,K$17:K$36,0)) -> 2 | J48: =IF(ISBLANK('Step 6'!A15),"",((C48*C$47)+(D48*D$47)+(F48*F$47)+(G48*G$47)+(H48*H$47)+(I48*I$47))/SUM(C$47:I$47)) -> 1.7 | K48: =IF(ISBLANK('Step 6'!A15),"",RANK(J48,J$48:J$67,1)) -> 2
A49: =IF(ISBLANK('Step 6'!A16),"",A18) -> Account #2 | C49: =IF(ISBLANK('Step 6'!$A16),"",RANK(C18,C$17:C$36,0)) -> 1 | D49: =IF(ISBLANK('Step 6'!$A16),"",RANK(F18,F$17:F$36,1)) -> 2 | F49: =IF(ISBLANK('Step 6'!$A16),"",RANK(G18,G$17:G$36,1)) -> 1 | G49: =IF(ISBLANK('Step 6'!$A16),"",RANK(I18,I$17:I$36,0)) -> 1 | H49: =IF(ISBLANK('Step 6'!$A16),"",RANK(J18,J$17:J$36,0)) -> 2 | I49: =IF(ISBLANK('Step 6'!$A16),"",RANK(K18,K$17:K$36,0)) -> 1 | J49: =IF(ISBLANK('Step 6'!A16),"",((C49*C$47)+(D49*D$47)+(F49*F$47)+(G49*G$47)+(H49*H$47)+(I49*I$47))/SUM(C$47:I$47)) -> 1.3 | K49: =IF(ISBLANK('Step 6'!A16),"",RANK(J49,J$48:J$67,1)) -> 1
A50: =IF(ISBLANK('Step 6'!A17),"",A19) ->  | C50: =IF(ISBLANK('Step 6'!$A17),"",RANK(C19,C$17:C$36,0)) ->  | D50: =IF(ISBLANK('Step 6'!$A17),"",RANK(F19,F$17:F$36,1)) ->  | F50: =IF(ISBLANK('Step 6'!$A17),"",RANK(H19,H$17:H$36,1)) ->  | G50: =IF(ISBLANK('Step 6'!$A17),"",RANK(I19,I$17:I$36,0)) ->  | H50: =IF(ISBLANK('Step 6'!$A17),"",RANK(J19,J$17:J$36,0)) ->  | I50: =IF(ISBLANK('Step 6'!$A17),"",RANK(K19,K$17:K$36,0)) ->  | J50: =IF(ISBLANK('Step 6'!A17),"",((C50*C$47)+(D50*D$47)+(E50*E$47)+(F50*F$47)+(G50*G$47)+(H50*H$47)+(I50*I$47))/SUM(C$47:I$47)) ->  | K50: =IF(ISBLANK('Step 6'!A17),"",RANK(J50,J$48:J$67,1)) -> 
A51: =IF(ISBLANK('Step 6'!A18),"",A20) ->  | C51: =IF(ISBLANK('Step 6'!$A18),"",RANK(C20,C$17:C$36,0)) ->  | D51: =IF(ISBLANK('Step 6'!$A18),"",RANK(F20,F$17:F$36,1)) ->  | F51: =IF(ISBLANK('Step 6'!$A18),"",RANK(H20,H$17:H$36,1)) ->  | G51: =IF(ISBLANK('Step 6'!$A18),"",RANK(I20,I$17:I$36,0)) ->  | H51: =IF(ISBLANK('Step 6'!$A18),"",RANK(J20,J$17:J$36,0)) ->  | I51: =IF(ISBLANK('Step 6'!$A18),"",RANK(K20,K$17:K$36,0)) ->  | J51: =IF(ISBLANK('Step 6'!A18),"",((C51*C$47)+(D51*D$47)+(E51*E$47)+(F51*F$47)+(G51*G$47)+(H51*H$47)+(I51*I$47))/SUM(C$47:I$47)) ->  | K51: =IF(ISBLANK('Step 6'!A18),"",RANK(J51,J$48:J$67,1)) -> 
A52: =IF(ISBLANK('Step 6'!A19),"",A21) ->  | C52: =IF(ISBLANK('Step 6'!$A19),"",RANK(C21,C$17:C$36,0)) ->  | D52: =IF(ISBLANK('Step 6'!$A19),"",RANK(F21,F$17:F$36,1)) ->  | F52: =IF(ISBLANK('Step 6'!$A19),"",RANK(H21,H$17:H$36,1)) ->  | G52: =IF(ISBLANK('Step 6'!$A19),"",RANK(I21,I$17:I$36,0)) ->  | H52: =IF(ISBLANK('Step 6'!$A19),"",RANK(J21,J$17:J$36,0)) ->  | I52: =IF(ISBLANK('Step 6'!$A19),"",RANK(K21,K$17:K$36,0)) ->  | J52: =IF(ISBLANK('Step 6'!A19),"",((C52*C$47)+(D52*D$47)+(E52*E$47)+(F52*F$47)+(G52*G$47)+(H52*H$47)+(I52*I$47))/SUM(C$47:I$47)) ->  | K52: =IF(ISBLANK('Step 6'!A19),"",RANK(J52,J$48:J$67,1)) -> 
A53: =IF(ISBLANK('Step 6'!A20),"",A22) ->  | C53: =IF(ISBLANK('Step 6'!$A20),"",RANK(C22,C$17:C$36,0)) ->  | D53: =IF(ISBLANK('Step 6'!$A20),"",RANK(F22,F$17:F$36,1)) ->  | F53: =IF(ISBLANK('Step 6'!$A20),"",RANK(H22,H$17:H$36,1)) ->  | G53: =IF(ISBLANK('Step 6'!$A20),"",RANK(I22,I$17:I$36,0)) ->  | H53: =IF(ISBLANK('Step 6'!$A20),"",RANK(J22,J$17:J$36,0)) ->  | I53: =IF(ISBLANK('Step 6'!$A20),"",RANK(K22,K$17:K$36,0)) ->  | J53: =IF(ISBLANK('Step 6'!A20),"",((C53*C$47)+(D53*D$47)+(E53*E$47)+(F53*F$47)+(G53*G$47)+(H53*H$47)+(I53*I$47))/SUM(C$47:I$47)) ->  | K53: =IF(ISBLANK('Step 6'!A20),"",RANK(J53,J$48:J$67,1)) -> 
A54: =IF(ISBLANK('Step 6'!A21),"",A23) ->  | C54: =IF(ISBLANK('Step 6'!$A21),"",RANK(C23,C$17:C$36,0)) ->  | D54: =IF(ISBLANK('Step 6'!$A21),"",RANK(F23,F$17:F$36,1)) ->  | F54: =IF(ISBLANK('Step 6'!$A21),"",RANK(H23,H$17:H$36,1)) ->  | G54: =IF(ISBLANK('Step 6'!$A21),"",RANK(I23,I$17:I$36,0)) ->  | H54: =IF(ISBLANK('Step 6'!$A21),"",RANK(J23,J$17:J$36,0)) ->  | I54: =IF(ISBLANK('Step 6'!$A21),"",RANK(K23,K$17:K$36,0)) ->  | J54: =IF(ISBLANK('Step 6'!A21),"",((C54*C$47)+(D54*D$47)+(E54*E$47)+(F54*F$47)+(G54*G$47)+(H54*H$47)+(I54*I$47))/SUM(C$47:I$47)) ->  | K54: =IF(ISBLANK('Step 6'!A21),"",RANK(J54,J$48:J$67,1)) -> 
A55: =IF(ISBLANK('Step 6'!A22),"",A24) ->  | C55: =IF(ISBLANK('Step 6'!$A22),"",RANK(C24,C$17:C$36,0)) ->  | D55: =IF(ISBLANK('Step 6'!$A22),"",RANK(F24,F$17:F$36,1)) ->  | F55: =IF(ISBLANK('Step 6'!$A22),"",RANK(H24,H$17:H$36,1)) ->  | G55: =IF(ISBLANK('Step 6'!$A22),"",RANK(I24,I$17:I$36,0)) ->  | H55: =IF(ISBLANK('Step 6'!$A22),"",RANK(J24,J$17:J$36,0)) ->  | I55: =IF(ISBLANK('Step 6'!$A22),"",RANK(K24,K$17:K$36,0)) ->  | J55: =IF(ISBLANK('Step 6'!A22),"",((C55*C$47)+(D55*D$47)+(E55*E$47)+(F55*F$47)+(G55*G$47)+(H55*H$47)+(I55*I$47))/SUM(C$47:I$47)) ->  | K55: =IF(ISBLANK('Step 6'!A22),"",RANK(J55,J$48:J$67,1)) -> 
A56: =IF(ISBLANK('Step 6'!A23),"",A25) ->  | C56: =IF(ISBLANK('Step 6'!$A23),"",RANK(C25,C$17:C$36,0)) ->  | D56: =IF(ISBLANK('Step 6'!$A23),"",RANK(F25,F$17:F$36,1)) ->  | F56: =IF(ISBLANK('Step 6'!$A23),"",RANK(H25,H$17:H$36,1)) ->  | G56: =IF(ISBLANK('Step 6'!$A23),"",RANK(I25,I$17:I$36,0)) ->  | H56: =IF(ISBLANK('Step 6'!$A23),"",RANK(J25,J$17:J$36,0)) ->  | I56: =IF(ISBLANK('Step 6'!$A23),"",RANK(K25,K$17:K$36,0)) ->  | J56: =IF(ISBLANK('Step 6'!A23),"",((C56*C$47)+(D56*D$47)+(E56*E$47)+(F56*F$47)+(G56*G$47)+(H56*H$47)+(I56*I$47))/SUM(C$47:I$47)) ->  | K56: =IF(ISBLANK('Step 6'!A23),"",RANK(J56,J$48:J$67,1)) -> 
A57: =IF(ISBLANK('Step 6'!A24),"",A26) ->  | C57: =IF(ISBLANK('Step 6'!$A24),"",RANK(C26,C$17:C$36,0)) ->  | D57: =IF(ISBLANK('Step 6'!$A24),"",RANK(F26,F$17:F$36,1)) ->  | F57: =IF(ISBLANK('Step 6'!$A24),"",RANK(H26,H$17:H$36,1)) ->  | G57: =IF(ISBLANK('Step 6'!$A24),"",RANK(I26,I$17:I$36,0)) ->  | H57: =IF(ISBLANK('Step 6'!$A24),"",RANK(J26,J$17:J$36,0)) ->  | I57: =IF(ISBLANK('Step 6'!$A24),"",RANK(K26,K$17:K$36,0)) ->  | J57: =IF(ISBLANK('Step 6'!A24),"",((C57*C$47)+(D57*D$47)+(E57*E$47)+(F57*F$47)+(G57*G$47)+(H57*H$47)+(I57*I$47))/SUM(C$47:I$47)) ->  | K57: =IF(ISBLANK('Step 6'!A24),"",RANK(J57,J$48:J$67,1)) -> 
A58: =IF(ISBLANK('Step 6'!A25),"",A27) ->  | C58: =IF(ISBLANK('Step 6'!$A25),"",RANK(C27,C$17:C$36,0)) ->  | D58: =IF(ISBLANK('Step 6'!$A25),"",RANK(F27,F$17:F$36,1)) ->  | F58: =IF(ISBLANK('Step 6'!$A25),"",RANK(H27,H$17:H$36,1)) ->  | G58: =IF(ISBLANK('Step 6'!$A25),"",RANK(I27,I$17:I$36,0)) ->  | H58: =IF(ISBLANK('Step 6'!$A25),"",RANK(J27,J$17:J$36,0)) ->  | I58: =IF(ISBLANK('Step 6'!$A25),"",RANK(K27,K$17:K$36,0)) ->  | J58: =IF(ISBLANK('Step 6'!A25),"",((C58*C$47)+(D58*D$47)+(E58*E$47)+(F58*F$47)+(G58*G$47)+(H58*H$47)+(I58*I$47))/SUM(C$47:I$47)) ->  | K58: =IF(ISBLANK('Step 6'!A25),"",RANK(J58,J$48:J$67,1)) -> 
A59: =IF(ISBLANK('Step 6'!A26),"",A28) ->  | C59: =IF(ISBLANK('Step 6'!$A26),"",RANK(C28,C$17:C$36,0)) ->  | D59: =IF(ISBLANK('Step 6'!$A26),"",RANK(F28,F$17:F$36,1)) ->  | F59: =IF(ISBLANK('Step 6'!$A26),"",RANK(H28,H$17:H$36,1)) ->  | G59: =IF(ISBLANK('Step 6'!$A26),"",RANK(I28,I$17:I$36,0)) ->  | H59: =IF(ISBLANK('Step 6'!$A26),"",RANK(J28,J$17:J$36,0)) ->  | I59: =IF(ISBLANK('Step 6'!$A26),"",RANK(K28,K$17:K$36,0)) ->  | J59: =IF(ISBLANK('Step 6'!A26),"",((C59*C$47)+(D59*D$47)+(E59*E$47)+(F59*F$47)+(G59*G$47)+(H59*H$47)+(I59*I$47))/SUM(C$47:I$47)) ->  | K59: =IF(ISBLANK('Step 6'!A26),"",RANK(J59,J$48:J$67,1)) -> 
A60: =IF(ISBLANK('Step 6'!A27),"",A29) ->  | C60: =IF(ISBLANK('Step 6'!$A27),"",RANK(C29,C$17:C$36,0)) ->  | D60: =IF(ISBLANK('Step 6'!$A27),"",RANK(F29,F$17:F$36,1)) ->  | F60: =IF(ISBLANK('Step 6'!$A27),"",RANK(H29,H$17:H$36,1)) ->  | G60: =IF(ISBLANK('Step 6'!$A27),"",RANK(I29,I$17:I$36,0)) ->  | H60: =IF(ISBLANK('Step 6'!$A27),"",RANK(J29,J$17:J$36,0)) ->  | I60: =IF(ISBLANK('Step 6'!$A27),"",RANK(K29,K$17:K$36,0)) ->  | J60: =IF(ISBLANK('Step 6'!A27),"",((C60*C$47)+(D60*D$47)+(E60*E$47)+(F60*F$47)+(G60*G$47)+(H60*H$47)+(I60*I$47))/SUM(C$47:I$47)) ->  | K60: =IF(ISBLANK('Step 6'!A27),"",RANK(J60,J$48:J$67,1)) -> 
A61: =IF(ISBLANK('Step 6'!A28),"",A30) ->  | C61: =IF(ISBLANK('Step 6'!$A28),"",RANK(C30,C$17:C$36,0)) ->  | D61: =IF(ISBLANK('Step 6'!$A28),"",RANK(F30,F$17:F$36,1)) ->  | F61: =IF(ISBLANK('Step 6'!$A28),"",RANK(H30,H$17:H$36,1)) ->  | G61: =IF(ISBLANK('Step 6'!$A28),"",RANK(I30,I$17:I$36,0)) ->  | H61: =IF(ISBLANK('Step 6'!$A28),"",RANK(J30,J$17:J$36,0)) ->  | I61: =IF(ISBLANK('Step 6'!$A28),"",RANK(K30,K$17:K$36,0)) ->  | J61: =IF(ISBLANK('Step 6'!A28),"",((C61*C$47)+(D61*D$47)+(E61*E$47)+(F61*F$47)+(G61*G$47)+(H61*H$47)+(I61*I$47))/SUM(C$47:I$47)) ->  | K61: =IF(ISBLANK('Step 6'!A28),"",RANK(J61,J$48:J$67,1)) -> 
A62: =IF(ISBLANK('Step 6'!A29),"",A31) ->  | C62: =IF(ISBLANK('Step 6'!$A29),"",RANK(C31,C$17:C$36,0)) ->  | D62: =IF(ISBLANK('Step 6'!$A29),"",RANK(F31,F$17:F$36,1)) ->  | F62: =IF(ISBLANK('Step 6'!$A29),"",RANK(H31,H$17:H$36,1)) ->  | G62: =IF(ISBLANK('Step 6'!$A29),"",RANK(I31,I$17:I$36,0)) ->  | H62: =IF(ISBLANK('Step 6'!$A29),"",RANK(J31,J$17:J$36,0)) ->  | I62: =IF(ISBLANK('Step 6'!$A29),"",RANK(K31,K$17:K$36,0)) ->  | J62: =IF(ISBLANK('Step 6'!A29),"",((C62*C$47)+(D62*D$47)+(E62*E$47)+(F62*F$47)+(G62*G$47)+(H62*H$47)+(I62*I$47))/SUM(C$47:I$47)) ->  | K62: =IF(ISBLANK('Step 6'!A29),"",RANK(J62,J$48:J$67,1)) -> 
A63: =IF(ISBLANK('Step 6'!A30),"",A32) ->  | C63: =IF(ISBLANK('Step 6'!$A30),"",RANK(C32,C$17:C$36,0)) ->  | D63: =IF(ISBLANK('Step 6'!$A30),"",RANK(F32,F$17:F$36,1)) ->  | F63: =IF(ISBLANK('Step 6'!$A30),"",RANK(H32,H$17:H$36,1)) ->  | G63: =IF(ISBLANK('Step 6'!$A30),"",RANK(I32,I$17:I$36,0)) ->  | H63: =IF(ISBLANK('Step 6'!$A30),"",RANK(J32,J$17:J$36,0)) ->  | I63: =IF(ISBLANK('Step 6'!$A30),"",RANK(K32,K$17:K$36,0)) ->  | J63: =IF(ISBLANK('Step 6'!A30),"",((C63*C$47)+(D63*D$47)+(E63*E$47)+(F63*F$47)+(G63*G$47)+(H63*H$47)+(I63*I$47))/SUM(C$47:I$47)) ->  | K63: =IF(ISBLANK('Step 6'!A30),"",RANK(J63,J$48:J$67,1)) -> 
A64: =IF(ISBLANK('Step 6'!A31),"",A33) ->  | C64: =IF(ISBLANK('Step 6'!$A31),"",RANK(C33,C$17:C$36,0)) ->  | D64: =IF(ISBLANK('Step 6'!$A31),"",RANK(F33,F$17:F$36,1)) ->  | F64: =IF(ISBLANK('Step 6'!$A31),"",RANK(H33,H$17:H$36,1)) ->  | G64: =IF(ISBLANK('Step 6'!$A31),"",RANK(I33,I$17:I$36,0)) ->  | H64: =IF(ISBLANK('Step 6'!$A31),"",RANK(J33,J$17:J$36,0)) ->  | I64: =IF(ISBLANK('Step 6'!$A31),"",RANK(K33,K$17:K$36,0)) ->  | J64: =IF(ISBLANK('Step 6'!A31),"",((C64*C$47)+(D64*D$47)+(E64*E$47)+(F64*F$47)+(G64*G$47)+(H64*H$47)+(I64*I$47))/SUM(C$47:I$47)) ->  | K64: =IF(ISBLANK('Step 6'!A31),"",RANK(J64,J$48:J$67,1)) -> 
A65: =IF(ISBLANK('Step 6'!A32),"",A34) ->  | C65: =IF(ISBLANK('Step 6'!$A32),"",RANK(C34,C$17:C$36,0)) ->  | D65: =IF(ISBLANK('Step 6'!$A32),"",RANK(F34,F$17:F$36,1)) ->  | F65: =IF(ISBLANK('Step 6'!$A32),"",RANK(H34,H$17:H$36,1)) ->  | G65: =IF(ISBLANK('Step 6'!$A32),"",RANK(I34,I$17:I$36,0)) ->  | H65: =IF(ISBLANK('Step 6'!$A32),"",RANK(J34,J$17:J$36,0)) ->  | I65: =IF(ISBLANK('Step 6'!$A32),"",RANK(K34,K$17:K$36,0)) ->  | J65: =IF(ISBLANK('Step 6'!A32),"",((C65*C$47)+(D65*D$47)+(E65*E$47)+(F65*F$47)+(G65*G$47)+(H65*H$47)+(I65*I$47))/SUM(C$47:I$47)) ->  | K65: =IF(ISBLANK('Step 6'!A32),"",RANK(J65,J$48:J$67,1)) -> 
A66: =IF(ISBLANK('Step 6'!A33),"",A35) ->  | C66: =IF(ISBLANK('Step 6'!$A33),"",RANK(C35,C$17:C$36,0)) ->  | D66: =IF(ISBLANK('Step 6'!$A33),"",RANK(F35,F$17:F$36,1)) ->  | F66: =IF(ISBLANK('Step 6'!$A33),"",RANK(H35,H$17:H$36,1)) ->  | G66: =IF(ISBLANK('Step 6'!$A33),"",RANK(I35,I$17:I$36,0)) ->  | H66: =IF(ISBLANK('Step 6'!$A33),"",RANK(J35,J$17:J$36,0)) ->  | I66: =IF(ISBLANK('Step 6'!$A33),"",RANK(K35,K$17:K$36,0)) ->  | J66: =IF(ISBLANK('Step 6'!A33),"",((C66*C$47)+(D66*D$47)+(E66*E$47)+(F66*F$47)+(G66*G$47)+(H66*H$47)+(I66*I$47))/SUM(C$47:I$47)) ->  | K66: =IF(ISBLANK('Step 6'!A33),"",RANK(J66,J$48:J$67,1)) -> 
A67: =IF(ISBLANK('Step 6'!A34),"",A36) ->  | C67: =IF(ISBLANK('Step 6'!$A34),"",RANK(C36,C$17:C$36,0)) ->  | D67: =IF(ISBLANK('Step 6'!$A34),"",RANK(F36,F$17:F$36,1)) ->  | F67: =IF(ISBLANK('Step 6'!$A34),"",RANK(H36,H$17:H$36,1)) ->  | G67: =IF(ISBLANK('Step 6'!$A34),"",RANK(I36,I$17:I$36,0)) ->  | H67: =IF(ISBLANK('Step 6'!$A34),"",RANK(J36,J$17:J$36,0)) ->  | I67: =IF(ISBLANK('Step 6'!$A34),"",RANK(K36,K$17:K$36,0)) ->  | J67: =IF(ISBLANK('Step 6'!A34),"",((C67*C$47)+(D67*D$47)+(E67*E$47)+(F67*F$47)+(G67*G$47)+(H67*H$47)+(I67*I$47))/SUM(C$47:I$47)) ->  | K67: =IF(ISBLANK('Step 6'!A34),"",RANK(J67,J$48:J$67,1)) -> 

Sheet Step 8
A1: BT PRICING PROCESS STEPS
A2: ='Start Here'!E27:E27&" Pricing Season" -> 2009 Pricing Season
A3: =IF(ISBLANK('Start Here'!E25),"","Market/Cluster: "&'Start Here'!E25) -> Market/Cluster: Market XX
A4: =IF(ISBLANK('Start Here'!E26),"","Hotel: "&'Start Here'!E26) -> Hotel: XYZ Resort
A6: Step 8: Adjust the First Mark Account Rates Up / Down
A8: a. Using the account rankings from Step 7 as well as the the data on the RR Account Templates, adjust the "RR" account rates up or down in
A9: the yellow shaded cells below.
A11: b. Review the ADR, Average % Change and Average % Discount for each account and make additional adjustments if necessary. Do the Average %
A12: Changes in rate and the Average % Discounts make sense based on the account rankings and other information you have collected on the
A13: accounts?
D19: ='Start Here'!$E$27:$E$27&" First Mark Account Rates" -> 2009 First Mark Account Rates | I19: ='Start Here'!$E$27:$E$27&" Account Rates " -> 2009 Account Rates
H20: Average | M20: Average | N20: Average | O20: Average
A21: Account | C21: Ranking | D21: Season 1 | E21: Season 2 | F21: Season 3 | G21: Season 4 | H21: Rate | I21: Season 1 | J21: Season 2 | K21: Season 3 | L21: Season 4 | M21: Rate | N21: % Change | O21: % Discount
A22: =IF(ISBLANK('Step 6'!A15),"",'Step 6'!A15) -> Account #1 | C22: =IF(ISBLANK('Step 7'!K48),"",'Step 7'!K48) -> 2 | D22: =IF(ISBLANK('Step 6'!$A15),"",'Step 6'!H15) -> $183 | E22: =IF(ISBLANK('Step 6'!$A15),"",'Step 6'!I15) -> $238 | F22: =IF(ISBLANK('Step 6'!$A15),"",'Step 6'!J15) -> $253 | G22: =IF(ISBLANK('Step 6'!$A15),"",'Step 6'!K15) -> $218 | H22: =IF(ISBLANK('Step 6'!$A15),"",'Step 6'!L15) -> $222 | I22: $184 | J22: $239 | K22: $254 | L22: $219 | M22: =IF(ISBLANK(I22),"",((I22*'Step 1'!E$39)+(J22*'Step 1'!E$40)+(K22*'Step 1'!E$41)+(L22*'Step 1'!E$42))) -> $223 | N22: =IF(ISERROR((M22-'Step 6'!G15)/'Step 6'!G15),"",(M22-'Step 6'!G15)/'Step 6'!G15) -> 3.6% | O22: =IF(ISERROR(('Step 5'!$F$28-'Step 8'!M22)/'Step 5'!$F$28),"",('Step 5'!$F$28-'Step 8'!M22)/'Step 5'!$F$28) -> 12%
A23: =IF(ISBLANK('Step 6'!A16),"",'Step 6'!A16) -> Account #2 | C23: =IF(ISBLANK('Step 7'!K49),"",'Step 7'!K49) -> 1 | D23: =IF(ISBLANK('Step 6'!$A16),"",'Step 6'!H16) -> $173 | E23: =IF(ISBLANK('Step 6'!$A16),"",'Step 6'!I16) -> $227 | F23: =IF(ISBLANK('Step 6'!$A16),"",'Step 6'!J16) -> $243 | G23: =IF(ISBLANK('Step 6'!$A16),"",'Step 6'!K16) -> $207 | H23: =IF(ISBLANK('Step 6'!$A16),"",'Step 6'!L16) -> $211 | I23: $174 | J23: $224 | K23: $244 | L23: $204 | M23: =IF(ISBLANK(I23),"",((I23*'Step 1'!E$39)+(J23*'Step 1'!E$40)+(K23*'Step 1'!E$41)+(L23*'Step 1'!E$42))) -> $210 | N23: =IF(ISERROR((M23-'Step 6'!G16)/'Step 6'!G16),"",(M23-'Step 6'!G16)/'Step 6'!G16) -> 2.4% | O23: =IF(ISERROR(('Step 5'!$F$28-'Step 8'!M23)/'Step 5'!$F$28),"",('Step 5'!$F$28-'Step 8'!M23)/'Step 5'!$F$28) -> 17%
A24: =IF(ISBLANK('Step 6'!A17),"",'Step 6'!A17) ->  | C24: =IF(ISBLANK('Step 7'!K50),"",'Step 7'!K50) ->  | D24: =IF(ISBLANK('Step 6'!$A17),"",'Step 6'!H17) ->  | E24: =IF(ISBLANK('Step 6'!$A17),"",'Step 6'!I17) ->  | F24: =IF(ISBLANK('Step 6'!$A17),"",'Step 6'!J17) ->  | G24: =IF(ISBLANK('Step 6'!$A17),"",'Step 6'!K17) ->  | H24: =IF(ISBLANK('Step 6'!$A17),"",'Step 6'!L17) ->  | M24: =IF(ISBLANK(I24),"",((I24*'Step 1'!E$39)+(J24*'Step 1'!E$40)+(K24*'Step 1'!E$41)+(L24*'Step 1'!E$42))) ->  | N24: =IF(ISERROR((M24-'Step 6'!G17)/'Step 6'!G17),"",(M24-'Step 6'!G17)/'Step 6'!G17) ->  | O24: =IF(ISERROR(('Step 5'!$F$28-'Step 8'!M24)/'Step 5'!$F$28),"",('Step 5'!$F$28-'Step 8'!M24)/'Step 5'!$F$28) -> 
A25: =IF(ISBLANK('Step 6'!A18),"",'Step 6'!A18) ->  | C25: =IF(ISBLANK('Step 7'!K51),"",'Step 7'!K51) ->  | D25: =IF(ISBLANK('Step 6'!$A18),"",'Step 6'!H18) ->  | E25: =IF(ISBLANK('Step 6'!$A18),"",'Step 6'!I18) ->  | F25: =IF(ISBLANK('Step 6'!$A18),"",'Step 6'!J18) ->  | G25: =IF(ISBLANK('Step 6'!$A18),"",'Step 6'!K18) ->  | H25: =IF(ISBLANK('Step 6'!$A18),"",'Step 6'!L18) ->  | M25: =IF(ISBLANK(I25),"",((I25*'Step 1'!E$39)+(J25*'Step 1'!E$40)+(K25*'Step 1'!E$41)+(L25*'Step 1'!E$42))) ->  | N25: =IF(ISERROR((M25-'Step 6'!G18)/'Step 6'!G18),"",(M25-'Step 6'!G18)/'Step 6'!G18) ->  | O25: =IF(ISERROR(('Step 5'!$F$28-'Step 8'!M25)/'Step 5'!$F$28),"",('Step 5'!$F$28-'Step 8'!M25)/'Step 5'!$F$28) -> 
A26: =IF(ISBLANK('Step 6'!A19),"",'Step 6'!A19) ->  | C26: =IF(ISBLANK('Step 7'!K52),"",'Step 7'!K52) ->  | D26: =IF(ISBLANK('Step 6'!$A19),"",'Step 6'!H19) ->  | E26: =IF(ISBLANK('Step 6'!$A19),"",'Step 6'!I19) ->  | F26: =IF(ISBLANK('Step 6'!$A19),"",'Step 6'!J19) ->  | G26: =IF(ISBLANK('Step 6'!$A19),"",'Step 6'!K19) ->  | H26: =IF(ISBLANK('Step 6'!$A19),"",'Step 6'!L19) ->  | M26: =IF(ISBLANK(I26),"",((I26*'Step 1'!E$39)+(J26*'Step 1'!E$40)+(K26*'Step 1'!E$41)+(L26*'Step 1'!E$42))) ->  | N26: =IF(ISERROR((M26-'Step 6'!G19)/'Step 6'!G19),"",(M26-'Step 6'!G19)/'Step 6'!G19) ->  | O26: =IF(ISERROR(('Step 5'!$F$28-'Step 8'!M26)/'Step 5'!$F$28),"",('Step 5'!$F$28-'Step 8'!M26)/'Step 5'!$F$28) -> 
A27: =IF(ISBLANK('Step 6'!A20),"",'Step 6'!A20) ->  | C27: =IF(ISBLANK('Step 7'!K53),"",'Step 7'!K53) ->  | D27: =IF(ISBLANK('Step 6'!$A20),"",'Step 6'!H20) ->  | E27: =IF(ISBLANK('Step 6'!$A20),"",'Step 6'!I20) ->  | F27: =IF(ISBLANK('Step 6'!$A20),"",'Step 6'!J20) ->  | G27: =IF(ISBLANK('Step 6'!$A20),"",'Step 6'!K20) ->  | H27: =IF(ISBLANK('Step 6'!$A20),"",'Step 6'!L20) ->  | M27: =IF(ISBLANK(I27),"",((I27*'Step 1'!E$39)+(J27*'Step 1'!E$40)+(K27*'Step 1'!E$41)+(L27*'Step 1'!E$42))) ->  | N27: =IF(ISERROR((M27-'Step 6'!G20)/'Step 6'!G20),"",(M27-'Step 6'!G20)/'Step 6'!G20) ->  | O27: =IF(ISERROR(('Step 5'!$F$28-'Step 8'!M27)/'Step 5'!$F$28),"",('Step 5'!$F$28-'Step 8'!M27)/'Step 5'!$F$28) -> 
A28: =IF(ISBLANK('Step 6'!A21),"",'Step 6'!A21) ->  | C28: =IF(ISBLANK('Step 7'!K54),"",'Step 7'!K54) ->  | D28: =IF(ISBLANK('Step 6'!$A21),"",'Step 6'!H21) ->  | E28: =IF(ISBLANK('Step 6'!$A21),"",'Step 6'!I21) ->  | F28: =IF(ISBLANK('Step 6'!$A21),"",'Step 6'!J21) ->  | G28: =IF(ISBLANK('Step 6'!$A21),"",'Step 6'!K21) ->  | H28: =IF(ISBLANK('Step 6'!$A21),"",'Step 6'!L21) ->  | M28: =IF(ISBLANK(I28),"",((I28*'Step 1'!E$39)+(J28*'Step 1'!E$40)+(K28*'Step 1'!E$41)+(L28*'Step 1'!E$42))) ->  | N28: =IF(ISERROR((M28-'Step 6'!G21)/'Step 6'!G21),"",(M28-'Step 6'!G21)/'Step 6'!G21) ->  | O28: =IF(ISERROR(('Step 5'!$F$28-'Step 8'!M28)/'Step 5'!$F$28),"",('Step 5'!$F$28-'Step 8'!M28)/'Step 5'!$F$28) -> 
A29: =IF(ISBLANK('Step 6'!A22),"",'Step 6'!A22) ->  | C29: =IF(ISBLANK('Step 7'!K55),"",'Step 7'!K55) ->  | D29: =IF(ISBLANK('Step 6'!$A22),"",'Step 6'!H22) ->  | E29: =IF(ISBLANK('Step 6'!$A22),"",'Step 6'!I22) ->  | F29: =IF(ISBLANK('Step 6'!$A22),"",'Step 6'!J22) ->  | G29: =IF(ISBLANK('Step 6'!$A22),"",'Step 6'!K22) ->  | H29: =IF(ISBLANK('Step 6'!$A22),"",'Step 6'!L22) ->  | M29: =IF(ISBLANK(I29),"",((I29*'Step 1'!E$39)+(J29*'Step 1'!E$40)+(K29*'Step 1'!E$41)+(L29*'Step 1'!E$42))) ->  | N29: =IF(ISERROR((M29-'Step 6'!G22)/'Step 6'!G22),"",(M29-'Step 6'!G22)/'Step 6'!G22) ->  | O29: =IF(ISERROR(('Step 5'!$F$28-'Step 8'!M29)/'Step 5'!$F$28),"",('Step 5'!$F$28-'Step 8'!M29)/'Step 5'!$F$28) -> 
A30: =IF(ISBLANK('Step 6'!A23),"",'Step 6'!A23) ->  | C30: =IF(ISBLANK('Step 7'!K56),"",'Step 7'!K56) ->  | D30: =IF(ISBLANK('Step 6'!$A23),"",'Step 6'!H23) ->  | E30: =IF(ISBLANK('Step 6'!$A23),"",'Step 6'!I23) ->  | F30: =IF(ISBLANK('Step 6'!$A23),"",'Step 6'!J23) ->  | G30: =IF(ISBLANK('Step 6'!$A23),"",'Step 6'!K23) ->  | H30: =IF(ISBLANK('Step 6'!$A23),"",'Step 6'!L23) ->  | M30: =IF(ISBLANK(I30),"",((I30*'Step 1'!E$39)+(J30*'Step 1'!E$40)+(K30*'Step 1'!E$41)+(L30*'Step 1'!E$42))) ->  | N30: =IF(ISERROR((M30-'Step 6'!G23)/'Step 6'!G23),"",(M30-'Step 6'!G23)/'Step 6'!G23) ->  | O30: =IF(ISERROR(('Step 5'!$F$28-'Step 8'!M30)/'Step 5'!$F$28),"",('Step 5'!$F$28-'Step 8'!M30)/'Step 5'!$F$28) -> 
A31: =IF(ISBLANK('Step 6'!A24),"",'Step 6'!A24) ->  | C31: =IF(ISBLANK('Step 7'!K57),"",'Step 7'!K57) ->  | D31: =IF(ISBLANK('Step 6'!$A24),"",'Step 6'!H24) ->  | E31: =IF(ISBLANK('Step 6'!$A24),"",'Step 6'!I24) ->  | F31: =IF(ISBLANK('Step 6'!$A24),"",'Step 6'!J24) ->  | G31: =IF(ISBLANK('Step 6'!$A24),"",'Step 6'!K24) ->  | H31: =IF(ISBLANK('Step 6'!$A24),"",'Step 6'!L24) ->  | M31: =IF(ISBLANK(I31),"",((I31*'Step 1'!E$39)+(J31*'Step 1'!E$40)+(K31*'Step 1'!E$41)+(L31*'Step 1'!E$42))) ->  | N31: =IF(ISERROR((M31-'Step 6'!G24)/'Step 6'!G24),"",(M31-'Step 6'!G24)/'Step 6'!G24) ->  | O31: =IF(ISERROR(('Step 5'!$F$28-'Step 8'!M31)/'Step 5'!$F$28),"",('Step 5'!$F$28-'Step 8'!M31)/'Step 5'!$F$28) -> 
A32: =IF(ISBLANK('Step 6'!A25),"",'Step 6'!A25) ->  | C32: =IF(ISBLANK('Step 7'!K58),"",'Step 7'!K58) ->  | D32: =IF(ISBLANK('Step 6'!$A25),"",'Step 6'!H25) ->  | E32: =IF(ISBLANK('Step 6'!$A25),"",'Step 6'!I25) ->  | F32: =IF(ISBLANK('Step 6'!$A25),"",'Step 6'!J25) ->  | G32: =IF(ISBLANK('Step 6'!$A25),"",'Step 6'!K25) ->  | H32: =IF(ISBLANK('Step 6'!$A25),"",'Step 6'!L25) ->  | M32: =IF(ISBLANK(I32),"",((I32*'Step 1'!E$39)+(J32*'Step 1'!E$40)+(K32*'Step 1'!E$41)+(L32*'Step 1'!E$42))) ->  | N32: =IF(ISERROR((M32-'Step 6'!G25)/'Step 6'!G25),"",(M32-'Step 6'!G25)/'Step 6'!G25) ->  | O32: =IF(ISERROR(('Step 5'!$F$28-'Step 8'!M32)/'Step 5'!$F$28),"",('Step 5'!$F$28-'Step 8'!M32)/'Step 5'!$F$28) -> 
A33: =IF(ISBLANK('Step 6'!A26),"",'Step 6'!A26) ->  | C33: =IF(ISBLANK('Step 7'!K59),"",'Step 7'!K59) ->  | D33: =IF(ISBLANK('Step 6'!$A26),"",'Step 6'!H26) ->  | E33: =IF(ISBLANK('Step 6'!$A26),"",'Step 6'!I26) ->  | F33: =IF(ISBLANK('Step 6'!$A26),"",'Step 6'!J26) ->  | G33: =IF(ISBLANK('Step 6'!$A26),"",'Step 6'!K26) ->  | H33: =IF(ISBLANK('Step 6'!$A26),"",'Step 6'!L26) ->  | M33: =IF(ISBLANK(I33),"",((I33*'Step 1'!E$39)+(J33*'Step 1'!E$40)+(K33*'Step 1'!E$41)+(L33*'Step 1'!E$42))) ->  | N33: =IF(ISERROR((M33-'Step 6'!G26)/'Step 6'!G26),"",(M33-'Step 6'!G26)/'Step 6'!G26) ->  | O33: =IF(ISERROR(('Step 5'!$F$28-'Step 8'!M33)/'Step 5'!$F$28),"",('Step 5'!$F$28-'Step 8'!M33)/'Step 5'!$F$28) -> 
A34: =IF(ISBLANK('Step 6'!A27),"",'Step 6'!A27) ->  | C34: =IF(ISBLANK('Step 7'!K60),"",'Step 7'!K60) ->  | D34: =IF(ISBLANK('Step 6'!$A27),"",'Step 6'!H27) ->  | E34: =IF(ISBLANK('Step 6'!$A27),"",'Step 6'!I27) ->  | F34: =IF(ISBLANK('Step 6'!$A27),"",'Step 6'!J27) ->  | G34: =IF(ISBLANK('Step 6'!$A27),"",'Step 6'!K27) ->  | H34: =IF(ISBLANK('Step 6'!$A27),"",'Step 6'!L27) ->  | M34: =IF(ISBLANK(I34),"",((I34*'Step 1'!E$39)+(J34*'Step 1'!E$40)+(K34*'Step 1'!E$41)+(L34*'Step 1'!E$42))) ->  | N34: =IF(ISERROR((M34-'Step 6'!G27)/'Step 6'!G27),"",(M34-'Step 6'!G27)/'Step 6'!G27) ->  | O34: =IF(ISERROR(('Step 5'!$F$28-'Step 8'!M34)/'Step 5'!$F$28),"",('Step 5'!$F$28-'Step 8'!M34)/'Step 5'!$F$28) -> 
A35: =IF(ISBLANK('Step 6'!A28),"",'Step 6'!A28) ->  | C35: =IF(ISBLANK('Step 7'!K61),"",'Step 7'!K61) ->  | D35: =IF(ISBLANK('Step 6'!$A28),"",'Step 6'!H28) ->  | E35: =IF(ISBLANK('Step 6'!$A28),"",'Step 6'!I28) ->  | F35: =IF(ISBLANK('Step 6'!$A28),"",'Step 6'!J28) ->  | G35: =IF(ISBLANK('Step 6'!$A28),"",'Step 6'!K28) ->  | H35: =IF(ISBLANK('Step 6'!$A28),"",'Step 6'!L28) ->  | M35: =IF(ISBLANK(I35),"",((I35*'Step 1'!E$39)+(J35*'Step 1'!E$40)+(K35*'Step 1'!E$41)+(L35*'Step 1'!E$42))) ->  | N35: =IF(ISERROR((M35-'Step 6'!G28)/'Step 6'!G28),"",(M35-'Step 6'!G28)/'Step 6'!G28) ->  | O35: =IF(ISERROR(('Step 5'!$F$28-'Step 8'!M35)/'Step 5'!$F$28),"",('Step 5'!$F$28-'Step 8'!M35)/'Step 5'!$F$28) -> 
A36: =IF(ISBLANK('Step 6'!A29),"",'Step 6'!A29) ->  | C36: =IF(ISBLANK('Step 7'!K62),"",'Step 7'!K62) ->  | D36: =IF(ISBLANK('Step 6'!$A29),"",'Step 6'!H29) ->  | E36: =IF(ISBLANK('Step 6'!$A29),"",'Step 6'!I29) ->  | F36: =IF(ISBLANK('Step 6'!$A29),"",'Step 6'!J29) ->  | G36: =IF(ISBLANK('Step 6'!$A29),"",'Step 6'!K29) ->  | H36: =IF(ISBLANK('Step 6'!$A29),"",'Step 6'!L29) ->  | M36: =IF(ISBLANK(I36),"",((I36*'Step 1'!E$39)+(J36*'Step 1'!E$40)+(K36*'Step 1'!E$41)+(L36*'Step 1'!E$42))) ->  | N36: =IF(ISERROR((M36-'Step 6'!G29)/'Step 6'!G29),"",(M36-'Step 6'!G29)/'Step 6'!G29) ->  | O36: =IF(ISERROR(('Step 5'!$F$28-'Step 8'!M36)/'Step 5'!$F$28),"",('Step 5'!$F$28-'Step 8'!M36)/'Step 5'!$F$28) -> 
A37: =IF(ISBLANK('Step 6'!A30),"",'Step 6'!A30) ->  | C37: =IF(ISBLANK('Step 7'!K63),"",'Step 7'!K63) ->  | D37: =IF(ISBLANK('Step 6'!$A30),"",'Step 6'!H30) ->  | E37: =IF(ISBLANK('Step 6'!$A30),"",'Step 6'!I30) ->  | F37: =IF(ISBLANK('Step 6'!$A30),"",'Step 6'!J30) ->  | G37: =IF(ISBLANK('Step 6'!$A30),"",'Step 6'!K30) ->  | H37: =IF(ISBLANK('Step 6'!$A30),"",'Step 6'!L30) ->  | M37: =IF(ISBLANK(I37),"",((I37*'Step 1'!E$39)+(J37*'Step 1'!E$40)+(K37*'Step 1'!E$41)+(L37*'Step 1'!E$42))) ->  | N37: =IF(ISERROR((M37-'Step 6'!G30)/'Step 6'!G30),"",(M37-'Step 6'!G30)/'Step 6'!G30) ->  | O37: =IF(ISERROR(('Step 5'!$F$28-'Step 8'!M37)/'Step 5'!$F$28),"",('Step 5'!$F$28-'Step 8'!M37)/'Step 5'!$F$28) -> 
A38: =IF(ISBLANK('Step 6'!A31),"",'Step 6'!A31) ->  | C38: =IF(ISBLANK('Step 7'!K64),"",'Step 7'!K64) ->  | D38: =IF(ISBLANK('Step 6'!$A31),"",'Step 6'!H31) ->  | E38: =IF(ISBLANK('Step 6'!$A31),"",'Step 6'!I31) ->  | F38: =IF(ISBLANK('Step 6'!$A31),"",'Step 6'!J31) ->  | G38: =IF(ISBLANK('Step 6'!$A31),"",'Step 6'!K31) ->  | H38: =IF(ISBLANK('Step 6'!$A31),"",'Step 6'!L31) ->  | M38: =IF(ISBLANK(I38),"",((I38*'Step 1'!E$39)+(J38*'Step 1'!E$40)+(K38*'Step 1'!E$41)+(L38*'Step 1'!E$42))) ->  | N38: =IF(ISERROR((M38-'Step 6'!G31)/'Step 6'!G31),"",(M38-'Step 6'!G31)/'Step 6'!G31) ->  | O38: =IF(ISERROR(('Step 5'!$F$28-'Step 8'!M38)/'Step 5'!$F$28),"",('Step 5'!$F$28-'Step 8'!M38)/'Step 5'!$F$28) -> 
A39: =IF(ISBLANK('Step 6'!A32),"",'Step 6'!A32) ->  | C39: =IF(ISBLANK('Step 7'!K65),"",'Step 7'!K65) ->  | D39: =IF(ISBLANK('Step 6'!$A32),"",'Step 6'!H32) ->  | E39: =IF(ISBLANK('Step 6'!$A32),"",'Step 6'!I32) ->  | F39: =IF(ISBLANK('Step 6'!$A32),"",'Step 6'!J32) ->  | G39: =IF(ISBLANK('Step 6'!$A32),"",'Step 6'!K32) ->  | H39: =IF(ISBLANK('Step 6'!$A32),"",'Step 6'!L32) ->  | M39: =IF(ISBLANK(I39),"",((I39*'Step 1'!E$39)+(J39*'Step 1'!E$40)+(K39*'Step 1'!E$41)+(L39*'Step 1'!E$42))) ->  | N39: =IF(ISERROR((M39-'Step 6'!G32)/'Step 6'!G32),"",(M39-'Step 6'!G32)/'Step 6'!G32) ->  | O39: =IF(ISERROR(('Step 5'!$F$28-'Step 8'!M39)/'Step 5'!$F$28),"",('Step 5'!$F$28-'Step 8'!M39)/'Step 5'!$F$28) -> 
A40: =IF(ISBLANK('Step 6'!A33),"",'Step 6'!A33) ->  | C40: =IF(ISBLANK('Step 7'!K66),"",'Step 7'!K66) ->  | D40: =IF(ISBLANK('Step 6'!$A33),"",'Step 6'!H33) ->  | E40: =IF(ISBLANK('Step 6'!$A33),"",'Step 6'!I33) ->  | F40: =IF(ISBLANK('Step 6'!$A33),"",'Step 6'!J33) ->  | G40: =IF(ISBLANK('Step 6'!$A33),"",'Step 6'!K33) ->  | H40: =IF(ISBLANK('Step 6'!$A33),"",'Step 6'!L33) ->  | M40: =IF(ISBLANK(I40),"",((I40*'Step 1'!E$39)+(J40*'Step 1'!E$40)+(K40*'Step 1'!E$41)+(L40*'Step 1'!E$42))) ->  | N40: =IF(ISERROR((M40-'Step 6'!G33)/'Step 6'!G33),"",(M40-'Step 6'!G33)/'Step 6'!G33) ->  | O40: =IF(ISERROR(('Step 5'!$F$28-'Step 8'!M40)/'Step 5'!$F$28),"",('Step 5'!$F$28-'Step 8'!M40)/'Step 5'!$F$28) -> 
A41: =IF(ISBLANK('Step 6'!A34),"",'Step 6'!A34) ->  | C41: =IF(ISBLANK('Step 7'!K67),"",'Step 7'!K67) ->  | D41: =IF(ISBLANK('Step 6'!$A34),"",'Step 6'!H34) ->  | E41: =IF(ISBLANK('Step 6'!$A34),"",'Step 6'!I34) ->  | F41: =IF(ISBLANK('Step 6'!$A34),"",'Step 6'!J34) ->  | G41: =IF(ISBLANK('Step 6'!$A34),"",'Step 6'!K34) ->  | H41: =IF(ISBLANK('Step 6'!$A34),"",'Step 6'!L34) ->  | M41: =IF(ISBLANK(I41),"",((I41*'Step 1'!E$39)+(J41*'Step 1'!E$40)+(K41*'Step 1'!E$41)+(L41*'Step 1'!E$42))) ->  | N41: =IF(ISERROR((M41-'Step 6'!G34)/'Step 6'!G34),"",(M41-'Step 6'!G34)/'Step 6'!G34) ->  | O41: =IF(ISERROR(('Step 5'!$F$28-'Step 8'!M41)/'Step 5'!$F$28),"",('Step 5'!$F$28-'Step 8'!M41)/'Step 5'!$F$28) -> 
